[Event "Mitropa Cup Open 2024"]
[Site "Apolda"]
[Date "2024.02.16"]
[Round "2.16"]
[White "Decuigniere, Tom"]
[Black "Gallagher, Joseph G."]
[Result "1-0"]
[ECO "E71"]
[WhiteElo "2401"]
[BlackElo "2427"]
[Annotator "TA"]
[PlyCount "81"]
[EventDate "2024.02.15"]
[EventType "team-tourn"]
[EventCountry "GER"]
[SourceTitle "playchess.com"]
[Source "ChessBase"]
[SourceQuality "1"]
[WhiteTeam "France"]
[BlackTeam "Switzerland"]
[WhiteTeamCountry "FRA"]
[BlackTeamCountry "SUI"]
[TimeControl "40/5400+30:1800+30"]

{[%evp 10,81,43,25,49,45,49,28,34,32,39,17,74,18,87,17,23,23,25,0,15,-5,0,0,0,-37,-2,-18,-33,-27,0,0,37,35,22,24,179,172,160,164,166,41,21,36,31,27,29,23,68,64,83,62,86,75,73,85,108,116,197,150,144,30,436,272,279,272,281,266,866,665,779,768,737,720]} 1. d4 {[%emt 0:00:03]} Nf6 {[%emt 0:00:21]} 2. c4 {[%emt 0:00:07]} g6 {[%emt 0:00:12]} 3. Nc3 {[%emt 0:00:07]} Bg7 {[%emt 0:00:04]} 4. e4 {[%emt 0:00:08]} d6 {[%emt 0:00:07]} 5. h3 {[%emt 0:00:06]} O-O {[%emt 0:01:24]} 6. Be3 {[%emt 0:00:07]} a5 {[%emt 0:02:48]} 7. g4 {[%emt 0:02:55]} c5 {[%emt 0:06:22]} 8. Nge2 {[%emt 0:12:01]} (8. dxc5 $5 a4 9. Nge2 $11 (9. Nxa4 Qa5+ 10. Nc3 Nxe4 $17)) 8... cxd4 {[%emt 0:27:58] White has an edge.} 9. Nxd4 {[%emt 0:00:20]} Nc6 {[%emt 0:00:08]} 10. Bg2 {[%emt 0:05:08]} Bd7 {[%emt 0:06:49]} (10... Nxd4 $11 {remains equal.} 11. Bxd4 a4) 11. O-O {[%emt 0:05:54]} (11. Ndb5 $16) 11... a4 {[%emt 0:01:58]} 12. Rc1 {[%emt 0:05:00]} (12. Nxa4 $2 {perishes.} Nxd4 13. Nc3 Nc6 $19) (12. Ndb5 $16) 12... Nxd4 $11 {[%emt 0:03:24]} 13. Bxd4 {[%emt 0:00:10]} Bc6 {[%emt 0:00:06]} 14. Re1 {[%emt 0:05:25]} Re8 {[%emt 0:04:40]} 15. Nd5 {[%emt 0:06:04]} Nd7 {[%emt 0:00:27] Repels Bb6} 16. Bxg7 {[%emt 0:02:15]} Kxg7 {[%emt 0:00:02]} 17. Rc3 {[%emt 0:01:37]} Nc5 {[%emt 0:06:30]} 18. g5 {[%emt 0:06:11]} (18. e5 {simplifies} dxe5 19. Rxe5 Nd7 20. Re1) 18... e5 {[%emt 0:11:38][%cal Oc6d5]} 19. Nf6 {[%emt 0:02:23]} Re6 {[%emt 0:01:53]} 20. Rf3 {[%emt 0:08:46]} Qb6 {[%emt 0:04:19]} 21. h4 {[%emt 0:06:33]} Qxb2 {[%emt 0:02:56]} 22. Bh3 {[%emt 0:01:58] Chess con chili.} Qxa2 $2 {[%emt 0:06:24]} (22... Rd8 $11) 23. Bxe6 $18 {[%emt 0:01:42]} Nxe6 {[%emt 0:00:05]} 24. Qxd6 {[%emt 0:00:59]} Qxc4 {[%emt 0:00:22] [#]} 25. Ng4 {[%emt 0:02:34]} ({Worse is} 25. Qxe5 Qd4 26. Qxd4 Nxd4 $11) (25. Nd5 $1 $18 {[%cal Of3f7] Threatening mate with Rxf7+!} Bxd5 (25... Qd4 26. Rxf7+ Kg8 27. Qxe6 Bxd5 28. exd5) 26. Qxe5+ Kg8 27. exd5) 25... Qc5 $1 $14 {[%emt 0:04:30]} 26. Qxc5 {[%emt 0:11:07]} Nxc5 {[%emt 0:00:02]} 27. Nxe5 {[%emt 0:00:04][%cal Bg4e5,Be5d3,Bd3b4][%mdl 32]} Be8 {[%emt 0:00:07]} 28. Rc3 $36 {[%emt 0:03:37][%mdl 2048] White has some pressure.} Nd7 {[%emt 0:04:11][%cal Bc5d7,Bd7b6,Bb6c4][%mdl 32]} 29. Nd3 {[%emt 0:02:44] White has more active pieces.} b5 {[%emt 0:01:06]} 30. f4 {[%emt 0:02:56][%cal Bf2f4,Bf4f5,Bf5f6][%mdl 32]} Nb6 {[%emt 0:00:31]} 31. f5 {[%emt 0:00:08]} Nc4 {[%emt 0:01:03]} 32. f6+ {[%emt 0:01:16]} Kf8 {[%emt 0:00:04]} 33. Nb4 {[%emt 0:01:36]} Rd8 {[%emt 0:01:09]} (33... a3 $16) 34. Nd5 {[%emt 0:02:27]} (34. Rd3 $18 Rxd3 35. Nxd3) 34... Bc6 {[%emt 0:01:08]} 35. Rec1 {[%emt 0:01:50]} (35. Rb1 $16) 35... Rd6 $2 {[%emt 0:02:15][%mdl 8192]} (35... Bxd5 $11 {and Black stays safe.} 36. exd5 Rxd5) 36. Ne3 {[%emt 0:01:21]} Na5 {[%emt 0:00:53]} 37. Rc5 {[%emt 0:00:41]} Ke8 {[%emt 0:00:18]} 38. Nd5 {[%emt 0:00:20] [#] And now Nc7+ would win.} Nc4 $2 {[%emt 0:00:21]} (38... Kd7) 39. Nc7+ $18 {[%emt 0:00:24] White is clearly winning.} Kd7 {[%emt 0:00:42]} 40. Nxb5 {[%emt 0:00:05]} Bxb5 {[%emt 0:00:40]} 41. Rxb5 {[%emt 0:30:27] Weighted Error Value: White=0.26 (precise) /Black=0.41.  Loses game:     	---       	Black=1      Mistake:       	White=5     	Black=5      Inaccurate:     	White=2     	Black=4      OK:         	White=14    	Black=7      Best:        	White=2     	Black=4      Strong:       	---       	Black=1} 1-0

[Event "Mitropa Cup Open 2024"]
[Site "Apolda"]
[Date "2024.02.16"]
[Round "2.17"]
[White "Sahidi, Samir"]
[Black "Plenca, Jadranko"]
[Result "1-0"]
[ECO "D73"]
[WhiteElo "2478"]
[BlackElo "2429"]
[Annotator "RC"]
[PlyCount "135"]
[EventDate "2024.02.15"]
[EventType "team-tourn"]
[EventCountry "GER"]
[SourceTitle "playchess.com"]
[Source "ChessBase"]
[SourceQuality "1"]
[WhiteTeam "Slovakia"]
[BlackTeam "Croatia"]
[WhiteTeamCountry "SVK"]
[BlackTeamCountry "CRO"]
[TimeControl "40/5400+30:1800+30"]

1. Nf3 {[%emt 0:00:07]} d5 {[%emt 0:00:43]} 2. g3 {[%emt 0:00:15]} g6 {[%emt 0:03:02]} 3. Bg2 {[%emt 0:00:29]} Bg7 {[%emt 0:00:07]} 4. d4 {[%emt 0:00:42]} Nf6 {[%emt 0:02:42]} 5. O-O {[%emt 0:01:36]} O-O {[%emt 0:02:45]} 6. c4 {[%emt 0:01:57]} dxc4 {[%emt 0:09:19]} 7. Na3 {[%emt 0:00:47]} c5 {[%emt 0:06:23]} 8. Nxc4 {[%emt 0:03:59]} cxd4 {[%emt 0:11:37]} 9. Nxd4 {[%emt 0:02:45]} Nbd7 {[%emt 0:04:18]} 10. Nb5 {[%emt 0:06:54]} a6 {[%emt 0:03:48]} 11. Nc3 {[%emt 0:00:25]} Qc7 {[%emt 0:02:32]} 12. Qb3 {[%emt 0:02:45]} Rb8 {[%emt 0:03:24]} 13. Bf4 {[%emt 0:01:58]} e5 {[%emt 0:00:06]} 14. Bg5 {[%emt 0:01:03]} h6 {[%emt 0:04:13]} 15. Bxf6 {[%emt 0:05:03]} Nxf6 {[%emt 0:00:30]} 16. Ne3 {[%emt 0:04:06]} e4 {[%emt 0:10:39]} 17. Rac1 {[%emt 0:11:20]} Be6 {[%emt 0:05:38]} 18. Qb4 {[%emt 0:03:53]} Qe5 {[%emt 0:03:44]} 19. b3 {[%emt 0:17:18]} a5 {[%emt 0:13:22]} 20. Qb5 {[%emt 0:02:55]} Qxb5 {[%emt 0:01:13]} 21. Nxb5 {[%emt 0:00:07]} Rfd8 {[%emt 0:02:13]} 22. Nc3 {[%emt 0:07:00]} b5 {[%emt 0:04:08]} 23. Nxe4 {[%emt 0:01:10]} Nxe4 {[%emt 0:00:20]} 24. Bxe4 {[%emt 0:00:07]} a4 {[%emt 0:02:08]} 25. Bc2 {[%emt 0:11:20]} Rd2 {[%emt 0:00:21]} 26. Rfd1 {[%emt 0:01:57]} Rxd1+ {[%emt 0:02:28]} 27. Rxd1 {[%emt 0:02:39]} b4 {[%emt 0:01:10]} 28. Rb1 {[%emt 0:05:14]} Bd4 {[%emt 0:00:32]} 29. Kf1 {[%emt 0:03:31]} Rc8 {[%emt 0:00:42]} 30. Bd1 {[%emt 0:01:27]} a3 {[%emt 0:00:36]} 31. Ke1 {[%emt 0:00:37]} Bc3+ {[%emt 0:00:36]} 32. Kf1 {[%emt 0:00:05]} Bd2 {[%emt 0:00:21]} 33. Nc4 {[%emt 0:00:54]} Bxc4 {[%emt 0:00:29]} 34. bxc4 {[%emt 0:00:05]} Rxc4 {[%emt 0:00:04]} 35. e3 {[%emt 0:00:27]} Bc1 {[%emt 0:00:59]} 36. Rb3 {[%emt 0:00:53]} Bb2 {[%emt 0:00:42]} 37. Ke2 {[%emt 0:00:37]} Kf8 {[%emt 0:00:28]} 38. Rd3 {[%emt 0:00:26]} Rc3 {[%emt 0:00:15]} 39. Rd8+ {[%emt 0:00:28]} Ke7 {[%emt 0:00:47]} 40. Rb8 {[%emt 0:00:09]} Rc4 {[%emt 0:00:30]} 41. Bb3 {[%emt 0:30:13]} Rc7 {[%emt 0:02:03]} 42. Rxb4 {[%emt 0:00:00]} h5 {[%emt 0:05:06]} 43. f4 {[%emt 0:00:00]} Rd7 {[%emt 0:00:54]} 44. e4 {[%emt 0:00:00]} Bc3 {[%emt 0:05:42]} 45. Ra4 {[%emt 0:00:00]} Bb2 {[%emt 0:00:09]} 46. e5 {[%emt 0:00:00]} Kf8 {[%emt 0:01:35]} 47. Ke3 {[%emt 0:00:00]} Rb7 {[%emt 0:02:28]} 48. Ke4 {[%emt 0:00:00]} Ke7 {[%emt 0:00:38]} 49. Bd5 {[%emt 0:00:00]} Rc7 {[%emt 0:02:47]} 50. Ra6 {[%emt 0:00:00]} Kf8 {[%emt 0:00:23]} 51. h3 {[%emt 0:00:00]} Re7 {[%emt 0:00:28]} 52. Ra5 {[%emt 0:00:00]} Kg8 {[%emt 0:02:18]} 53. Bb3 {[%emt 0:00:00]} Rb7 {[%emt 0:00:07]} 54. Kf3 {[%emt 0:00:06]} Re7 {[%emt 0:00:28]} 55. g4 {[%emt 0:00:46]} hxg4+ {[%emt 0:00:50]} 56. hxg4 {[%emt 0:00:45]} g5 {[%emt 0:00:50]} 57. e6 {[%emt 0:00:38]} fxe6 {[%emt 0:00:24]} 58. Rxg5+ {[%emt 0:01:02]} Kh7 {[%emt 0:00:33]} 59. Ra5 {[%emt 0:01:50]} e5 {[%emt 0:05:20]} 60. Bc2+ {[%emt 0:00:08]} Kg7 {[%emt 0:00:18]} 61. f5 {[%emt 0:00:09]} Rc7 {[%emt 0:00:03]} 62. Bd3 {[%emt 0:00:38]} Rd7 {[%emt 0:00:12]} 63. Be4 {[%emt 0:00:20]} Bc1 {[%emt 0:01:21]} 64. Rxe5 {[%emt 0:01:42]} Kf6 {[%emt 0:00:28]} 65. Re6+ {[%emt 0:00:10]} Kg5 {[%emt 0:00:03]} 66. Rg6+ {[%emt 0:03:22]} Kh4 {[%emt 0:00:04]} 67. f6 {[%emt 0:01:04]} Rd1 {[%emt 0:01:30]} 68. Bf5 {[%emt 0:00:18]} 1-0

[Event "Mitropa Cup Open 2024"]
[Site "Apolda"]
[Date "2024.02.16"]
[Round "2.18"]
[White "Ivekovic, Bozidar"]
[Black "Haring, Filip"]
[Result "1/2-1/2"]
[ECO "B11"]
[WhiteElo "2399"]
[BlackElo "2432"]
[Annotator "TA"]
[PlyCount "134"]
[EventDate "2024.02.15"]
[EventType "team-tourn"]
[EventCountry "GER"]
[SourceTitle "playchess.com"]
[Source "ChessBase"]
[SourceQuality "1"]
[WhiteTeam "Croatia"]
[BlackTeam "Slovakia"]
[WhiteTeamCountry "CRO"]
[BlackTeamCountry "SVK"]
[TimeControl "40/5400+30:1800+30"]

{[%evp 43,133,-47,-42,-29,-27,-53,-33,-39,-44,-48,-44,-37,-50,-81,-92,-104,-102,-96,-106,-101,-96,-97,-93,-101,-81,-80,54,47,47,-70,-66,-66,533,-66,-66,-66,-66,-74,-52,-74,-60,-74,-74,-74,-37,-37,-37,-74,-37,-74,-37,-74,-27,-74,-74,-74,-74,-74,-74,-74,-8,-8,-8,-8,0,0,0,0,0,0,0,0,0,0,0,0,0,0,0,0,0,0,0,0,0,0,0,0,0,0,0,0]} 1. e4 {[%emt 0:00:03]} c6 {[%emt 0:00:07]} 2. Nc3 {[%emt 0:00:05]} d5 {[%emt 0:00:07]} 3. Nf3 {[%emt 0:00:04]} dxe4 {[%emt 0:00:17]} 4. Nxe4 {[%emt 0:00:14]} Nf6 {[%emt 0:00:08]} 5. Qe2 {[%emt 0:11:56]} Nxe4 {[%emt 0:00:11]} 6. Qxe4 {[%emt 0:00:03]} Nd7 {[%emt 0:00:15] B11: Caro-Kann: Two Knights Variation.} 7. Bc4 {[%emt 0:01:27]} Nf6 {[%emt 0:00:12]} 8. Ne5 {[%emt 0:00:55]} e6 {[%emt 0:00:08]} 9. Qe2 {[%emt 0:00:07]} b5 {[%emt 0:00:23]} 10. Bb3 {[%emt 0:02:28]} Qc7 {[%emt 0:00:18]} 11. d4 {[%emt 0:06:47]} Bd6 {[%emt 0:00:33]} 12. Bf4 {[%emt 0:02:03]} O-O {[%emt 0:00:35]} 13. Bg3 {[%emt 0:00:05]} a5 {[%emt 0:11:00]} 14. c3 {[%emt 0:09:01]} c5 {[%emt 0:01:40]} 15. dxc5 {[%emt 0:17:04]} Qxc5 {[%emt 0:00:28]} 16. O-O $146 {[%emt 0:05:17]} ({Predecessor:} 16. O-O-O a4 17. Bc2 a3 18. b4 Qxc3 19. Rxd6 Qb2+ 20. Kd1 Qa1+ 21. Kd2 Qxh1 22. Ng4 Nxg4 23. Qxg4 Bb7 24. Qh5 g6 25. Qxb5 Qxg2 {0-1 Reprintsev,A (2350)-Souleidis,G (2429) Titled Tuesday intern op 09th Aug Late blitz 2022 (9)}) 16... Bb7 {[%emt 0:06:35]} 17. Ng4 {[%emt 0:09:50]} Nxg4 {[%emt 0:19:18]} 18. Qxg4 {[%emt 0:01:24]} Bxg3 {[%emt 0:01:14]} 19. Qxg3 {[%emt 0:00:06]} a4 {[%emt 0:04:36]} 20. Bd1 {[%emt 0:07:53]} a3 {[%emt 0:07:33]} 21. b4 {[%emt 0:03:44]} Qf5 {[%emt 0:07:13]} 22. Bg4 {[%emt 0:03:28]} Qf6 {[%emt 0:05:29]} 23. Be2 {[%emt 0:01:38]} Rab8 {[%emt 0:08:33]} 24. Rfc1 {[%emt 0:06:57]} (24. Bxb5 $2 {is the wrong capture.} Bxg2 25. Kxg2 Rxb5 $19) 24... Bd5 {[%emt 0:03:06]} 25. c4 {[%emt 0:05:53]} bxc4 {[%emt 0:00:09]} 26. Qxa3 {[%emt 0:00:03]} Rfc8 {[%emt 0:05:59]} 27. Rc3 {[%emt 0:03:07]} Qg5 {[%emt 0:04:42]} 28. Bf1 {[%emt 0:01:06]} Qd2 {[%emt 0:01:36]} 29. Rb1 {[%emt 0:01:07]} Ra8 {[%emt 0:06:14]} 30. Qb2 {[%emt 0:00:08]} Rxa2 {[%emt 0:00:06]} 31. Qxd2 {[%emt 0:00:07]} Rxd2 {[%emt 0:00:01]} 32. b5 {[%emt 0:00:27]} Kf8 {[%emt 0:04:12]} 33. b6 {[%emt 0:01:32]} Ke7 {[%emt 0:01:30]} 34. Bxc4 {[%emt 0:00:47]} Bxc4 {[%emt 0:01:54]} (34... Be4 $17 35. b7 Rb8) 35. b7 $1 $14 {[%emt 0:00:21]} Rcd8 {[%emt 0:00:18]} 36. h4 {[%emt 0:00:21]} (36. Rcc1 $1 $14) 36... Rd1+ $15 {[%emt 0:00:33]} 37. Rxd1 {[%emt 0:00:04]} Rxd1+ {[%emt 0:00:04]} 38. Kh2 {[%emt 0:00:03]} Rb1 $1 {[%emt 0:00:07]} 39. Rxc4 {[%emt 0:00:13]} Rxb7 {[%emt 0:00:02]} 40. g3 {[%emt 0:00:52]} g6 {[%emt 0:01:39]} 41. Kg2 {[%emt 0:30:58]} Kd6 {[%emt 0:01:41]} 42. Rd4+ {[%emt 0:00:00]} Ke5 {[%emt 0:00:11]} 43. Ra4 {[%emt 0:00:00]} Rc7 {[%emt 0:01:01]} 44. Ra5+ {[%emt 0:00:00]} Kf6 {[%emt 0:01:19]} 45. Rb5 {[%emt 0:00:00]} Ra7 {[%emt 0:00:05]} 46. Rc5 {[%emt 0:00:00]} e5 {[%emt 0:00:35]} 47. Kf3 {[%emt 0:00:00]} Kf5 {[%emt 0:01:50]} (47... h5 $17) 48. Rb5 {[%emt 0:00:00]} (48. g4+ $1 $11 Ke6 49. Rc6+ Kd7 50. Rb6) 48... Ra3+ $17 {[%emt 0:01:49]} 49. Ke2 {[%emt 0:00:00]} f6 {[%emt 0:01:24]} 50. Rb7 {[%emt 0:00:00]} h6 {[%emt 0:00:56]} 51. Rb6 {[%emt 0:00:00]} Ra5 {[%emt 0:02:04]} (51... Ra4 $17) 52. f3 $1 $11 {[%emt 0:00:00]} Ra2+ {[%emt 0:01:23]} 53. Kf1 {[%emt 0:00:00]} g5 {[%emt 0:05:15]} 54. g4+ $1 {[%emt 0:00:00]} Kf4 {[%emt 0:05:46]} 55. Rxf6+ {[%emt 0:00:00]} Kg3 {[%emt 0:00:03]} 56. hxg5 {[%emt 0:00:00]} hxg5 {[%emt 0:00:06]} 57. Rf5 {[%emt 0:00:00]} Rf2+ {[%emt 0:00:22]} (57... e4 $5 58. fxe4 Kxg4 $11) 58. Ke1 {[%emt 0:01:15]} Rxf3 {[%emt 0:01:11]} 59. Rxg5 {[%emt 0:00:05]} e4 {[%emt 0:00:54]} 60. Ke2 {[%emt 0:00:42]} Ra3 {[%emt 0:00:41]} 61. Rf5 {[%emt 0:00:24]} Kxg4 {[%emt 0:00:09]} 62. Rf8 {[%emt 0:00:08]} Rf3 {[%emt 0:00:04]} 63. Rxf3 {[%emt 0:00:19]} exf3+ {[%emt 0:00:04]} 64. Kf2 {[%emt 0:00:04]} Kf4 {[%emt 0:00:03]} 65. Kf1 {[%emt 0:00:03]} Kg3 {[%emt 0:00:03]} 66. Kg1 {[%emt 0:00:04]} f2+ {[%emt 0:00:03]} 67. Kf1 {[%emt 0:00:02]} Kf3 {[%emt 0:15:53]} 1/2-1/2

[Event "Mitropa Cup Open 2024"]
[Site "Apolda"]
[Date "2024.02.16"]
[Round "2.19"]
[White "Bochnicka, Vladimir"]
[Black "Tomulic, Teo"]
[Result "1-0"]
[ECO "B41"]
[WhiteElo "2398"]
[BlackElo "2386"]
[Annotator "TA"]
[PlyCount "143"]
[EventDate "2024.02.15"]
[EventType "team-tourn"]
[EventCountry "GER"]
[SourceTitle "playchess.com"]
[Source "ChessBase"]
[SourceQuality "1"]
[WhiteTeam "Slovakia"]
[BlackTeam "Croatia"]
[WhiteTeamCountry "SVK"]
[BlackTeamCountry "CRO"]
[TimeControl "40/5400+30:1800+30"]

{[%evp 46,143,166,79,79,48,75,72,70,63,87,78,96,97,93,96,95,94,108,107,107,105,119,108,110,114,133,112,122,107,119,102,119,111,177,160,250,269,270,263,322,304,309,364,365,363,368,329,358,364,422,439,431,426,477,428,506,502,781,677,812,791,780,854,794,623,1559,1464,2114,2183,29973,29973,12832,5820,29975,29977,29975,29978,29978,29979,29977,29980,29980,29981,29981,29982,29982,29983,29983,29984,29984,29982,29985,29985,29986,29985,29985,29986,29992,29993]} 1. e4 {[%emt 0:00:02]} c5 {[%emt 0:00:05]} 2. Nf3 {[%emt 0:00:07]} e6 {[%emt 0:00:04]} 3. d4 {[%emt 0:00:12]} cxd4 {[%emt 0:00:05]} 4. Nxd4 {[%emt 0:00:06]} a6 {[%emt 0:00:02]} 5. c4 {[%emt 0:01:10]} Nf6 {[%emt 0:00:05]} 6. Nc3 {[%emt 0:00:08]} Bb4 {[%emt 0:00:04]} 7. Qd3 {[%emt 0:01:50] B41: Sicilian: Kan Variation: 5 c4.} Nc6 {[%emt 0:00:07]} 8. Nc2 {[%emt 0:05:17]} Bxc3+ {[%emt 0:23:06]} 9. Qxc3 {[%emt 0:06:59]} O-O {[%emt 0:01:18]} 10. Bd3 {[%emt 0:15:37]} d5 $146 {[%emt 0:02:21]} ({Predecessor:} 10... b6 11. O-O Bb7 12. Bg5 h6 13. Bh4 d6 14. Rfe1 Rc8 15. Rad1 e5 16. Qd2 Qe7 {1-0 Kujawski,A (2213)-Stivje,T (2312) Titled Tuesday intern op 2nd April blitz 2019 (8)}) 11. exd5 {[%emt 0:02:14]} exd5 {[%emt 0:00:08]} 12. O-O {[%emt 0:01:03]} Be6 {[%emt 0:07:23]} 13. Rd1 {[%emt 0:13:29]} d4 {[%emt 0:08:30]} 14. Qd2 {[%emt 0:09:26]} Ng4 {[%emt 0:11:05]} 15. Qf4 {[%emt 0:02:36]} Nge5 {[%emt 0:06:53]} 16. b3 {[%emt 0:03:48]} Qa5 {[%emt 0:05:51]} 17. Be4 {[%emt 0:11:42]} d3 {[%emt 0:07:22]} 18. Ne3 {[%emt 0:04:26]} Qc3 {[%emt 0:12:19]} 19. Ba3 {[%emt 0:01:34]} Rfe8 {[%emt 0:05:13]} 20. Rac1 {[%emt 0:08:33]} Qd4 {[%emt 0:00:41]} 21. Nc2 {[%emt 0:01:20]} Qd8 {[%emt 0:02:34]} 22. Bb2 {[%emt 0:00:37]} Qa5 {[%emt 0:02:20]} 23. Bxd3 {[%emt 0:03:23]} Ng6 {[%emt 0:02:24]} (23... Bg4 $16 24. f3 Bh5) 24. Bxg6 {[%emt 0:02:43]} (24. Qg3 $18) 24... hxg6 $16 {[%emt 0:00:08]} 25. Qg3 {[%emt 0:01:50]} (25. Qd2 {simplifies} Qxd2 26. Rxd2 g5 27. h3) 25... Rad8 {[%emt 0:00:54]} 26. Qc3 {[%emt 0:00:35]} Qxc3 {[%emt 0:00:09]} 27. Bxc3 {[%emt 0:00:04]} Rxd1+ {[%emt 0:01:11]} 28. Rxd1 {[%emt 0:00:04]} Rd8 {[%emt 0:00:55]} 29. Rxd8+ Nxd8 {[%emt 0:00:01]} 30. Ne3 {[%emt 0:01:59]} f6 {[%emt 0:01:28]} 31. Kf1 {[%emt 0:00:14]} Nc6 {[%emt 0:00:09]} 32. Ke2 {[%emt 0:01:03]} Kf7 {[%emt 0:00:08]} 33. Kd3 {[%emt 0:00:39]} Ke7 {[%emt 0:00:41]} 34. a3 {[%emt 0:00:52]} Kd7 {[%emt 0:00:31]} 35. h4 {[%emt 0:01:11]} Ke7 {[%emt 0:01:05]} 36. Kd2 {[%emt 0:00:37]} b5 {[%emt 0:00:31]} 37. Kd3 {[%emt 0:00:28]} Kd7 {[%emt 0:00:13]} 38. g4 {[%emt 0:00:28]} bxc4+ {[%emt 0:00:11]} 39. bxc4 {[%emt 0:00:06]} Ne7 {[%emt 0:01:06]} (39... Ke8 $16 {was necessary.} 40. Bd4 Kf7) 40. f3 {[%emt 0:00:39]} Kc6 {[%emt 0:00:20]} (40... Nc6 $16 41. g5 fxg5) 41. Bb4 $18 {[%emt 0:02:15]} Nc8 {[%emt 0:07:32]} 42. Bf8 {[%emt 0:02:00]} f5 {[%emt 0:00:04]} 43. Bxg7 {[%emt 0:01:11]} fxg4 {[%emt 0:01:16]} 44. fxg4 {[%emt 0:00:07]} Bf7 {[%emt 0:01:42]} 45. Kd4 {[%emt 0:02:55]} Nb6 {[%emt 0:01:27]} 46. Bf6 {[%emt 0:00:43]} Nd7 {[%emt 0:06:55]} 47. Be7 {[%emt 0:01:38]} Nb6 {[%emt 0:00:22]} 48. Bd8 {[%emt 0:01:45]} Nd7 {[%emt 0:02:08]} 49. Nd5 {[%emt 0:03:46]} Nf8 {[%emt 0:00:25]} 50. Nb4+ {[%emt 0:01:24]} Kb7 {[%emt 0:01:22]} 51. Be7 {[%emt 0:00:42]} Nd7 {[%emt 0:02:52]} (51... Ne6+ $142 52. Ke5 Nc7) 52. c5 $18 {[%emt 0:00:46]} Nb8 {[%emt 0:00:36]} 53. Ke5 {[%emt 0:03:11]} a5 {[%emt 0:00:45]} 54. Nd3 {[%emt 0:00:31]} Nd7+ {[%emt 0:01:37]} 55. Kd6 {[%emt 0:00:17]} Nb8 {[%emt 0:00:50]} 56. Ne5 {[%emt 0:00:42]} Be8 {[%emt 0:00:05]} 57. Ke6 {[%emt 0:00:32]} Nc6 {[%emt 0:01:39]} 58. Nxc6 {[%emt 0:02:51]} Kxc6 {[%emt 0:00:22]} 59. Kf6 {[%emt 0:00:14]} (59. Bd6 $142 Kb5 60. Ke7) 59... Kd5 {[%emt 0:01:23]} 60. Bd6 {[%emt 0:01:08]} Ke4 {[%emt 0:00:29]} 61. Ke7 {[%emt 0:00:15]} Bc6 {[%emt 0:00:49]} 62. h5 {[%emt 0:00:47]} gxh5 {[%emt 0:00:06]} 63. gxh5 {[%emt 0:00:04]} Kf5 {[%emt 0:00:09]} 64. h6 {[%emt 0:00:17]} Kg6 {[%emt 0:00:11]} 65. Bf4 {[%emt 0:00:06]} Be4 {[%emt 0:00:11]} 66. Kd6 {[%emt 0:00:30]} Kf7 {[%emt 0:00:02]} 67. c6 {[%emt 0:00:36]} Bf5 {[%emt 0:00:14]} 68. c7 {[%emt 0:00:12]} Bg4 {[%emt 0:00:16]} 69. Kc6 {[%emt 0:00:14]} Bc8 {[%emt 0:00:13]} 70. Kb6 {[%emt 0:00:05]} a4 {[%emt 0:00:09]} 71. Ka7 {[%emt 0:00:07]} Ke8 {[%emt 0:00:25]} 72. h7 {[%emt 0:00:06]} 1-0